bitfinex-derivatives/quotes_SOLF0:USTF0_20240823
["timestamp","ask_amount","ask_price","bid_price","bid_amount"]
[1724434335960,3.437,145.46,145.45,5.54790491]
[1724434336161,0.04576997,145.48,145.42,5.5]
[1724434336352,29.22,145.44,145.42,5.5]
[1724434337065,0.05034818,145.44,145.42,5.55099996]
[1724434338362,3.4377,145.43,145.42,5.55099996]
[1724434340056,3.4384,145.4,145.39,5.5]
[1724434340260,36.11401074,145.4,145.39,5.5]
[1724434342368,6.89401074,145.4,145.39,5.5]
[1724434342671,36.11401074,145.4,145.39,5.5]
[1724434342868,61.89561074,145.4,145.38,0.04887342]
[1724434343073,3.45561074,145.4,145.3,1.8395]
[1724434343261,1.8224,145.39,145.38,6.85]
[1724434343461,5.21328448,145.39,145.3,1.8395]
[1724434343668,29.22,145.34,145.31,3.51348093]
[1724434343869,32.66,145.34,145.31,7.88]
[1724434344066,32.70755508,145.34,145.31,7.92491776]
[1724434344570,0.04755508,145.34,145.31,7.92491776]
[1724434344870,0.04755508,145.34,145.32,3.51271479]
[1724434345069,0.04755508,145.34,145.31,7.92491776]
[1724434345370,0.04755508,145.34,145.32,3.51295964]
[1724434345665,0.04755508,145.34,145.31,7.92491776]
[1724434345865,0.04755508,145.34,145.32,3.51274107]
[1724434346070,0.04755508,145.34,145.31,7.92491776]
[1724434346276,0.04755508,145.34,145.32,4.63289354]
[1724434346571,0.04755508,145.34,145.32,2.8664]
[1724434346773,32.65734996,145.39,145.32,4.7315]
[1724434346966,29.22,145.38,145.32,4.7315]
[1724434347770,0.0475462,145.36,145.34,0.04853812]
[1724434347970,3.4396,145.35,145.34,0.04853812]
[1724434348776,29.2675462,145.36,145.34,0.04853812]
[1724434348971,0.0475462,145.36,145.34,0.04853812]
[1724434349172,3.4396,145.35,145.34,0.04853812]
[1724434350274,3.4401,145.33,145.32,1.12]
[1724434350476,32.6601,145.33,145.32,1.12]
[1724434351671,3.4401,145.33,145.32,1.12]
[1724434352570,3.4399,145.34,145.32,1.12]
[1724434352975,3.4401,145.33,145.32,1.12]
[1724434355774,3.4399,145.34,145.32,8.55]
[1724434356875,0.0475462,145.36,145.32,8.55]
[1724434357074,29.2675462,145.36,145.32,8.55]
[1724434357474,3.4397,145.35,145.32,8.55]
[1724434358080,3.4401,145.33,145.32,8.55]
[1724434358279,3.4401,145.33,145.32,15.43]
[1724434358280,32.6601,145.33,145.32,15.43]
[1724434360184,3.4403,145.32,145.31,7.93125165]
[1724434360377,29.22,145.33,145.26,1.7212]
[1724434360579,29.22,145.29,145.26,1.7212]
[1724434361284,3.4414,145.28,145.25,1.8563]
[1724434361484,3.48698485,145.28,145.26,0.04905066]
[1724434361686,3.4415,145.27,145.26,0.04905066]
[1724434362286,32.6615,145.27,145.26,0.04905066]
[1724434362890,32.6615,145.27,145.26,5.54905066]
[1724434364090,3.4415,145.27,145.26,5.54905066]
[1724434365391,32.6615,145.27,145.26,5.54905066]
[1724434373804,3.4415,145.27,145.26,5.54905066]
[1724434375507,3.4415,145.27,145.26,6.36905066]
[1724434376305,0.04558485,145.28,145.26,6.36905066]
[1724434376906,3.48708485,145.28,145.26,6.36905066]
[1724434377205,0.04558485,145.28,145.26,6.36905066]
[1724434378304,3.4415,145.27,145.26,6.36905066]
[1724434379805,32.6615,145.27,145.26,6.36905066]
[1724434381412,29.22,145.27,145.21,1.7095]
[1724434381620,29.22,145.24,145.21,1.7095]
[1724434381910,3.4431,145.21,145.19,1.8458]
[1724434382313,3.49262126,145.21,145.19,1.897349]
[1724434382502,0.04952126,145.21,145.19,1.897349]
[1724434383110,0.04952126,145.21,145.19,0.051549]
[1724434383513,3.49252126,145.21,145.19,0.051549]
[1724434383910,0.04952126,145.21,145.19,0.051549]
[1724434384115,29.22,145.2,145.19,0.051549]
[1724434384513,32.6632,145.2,145.19,0.051549]
[1724434386021,29.22,145.2,145.15,1.7277]
[1724434386315,29.22,145.17,145.15,1.7277]
[1724434386512,3.4441,145.16,145.15,1.7277]
[1724434386711,29.22,145.17,145.1,3.4454]
[1724434386912,3.43199518,145.23,145.11,31.08]
[1724434387114,29.22,145.2,145.11,31.08]
[1724434387315,0.04601931,145.15,145.12,0.0459517]
[1724434389421,0.04601931,145.15,145.12,3.4909517]
[1724434389808,3.49041931,145.15,145.12,0.0459517]
[1724434390010,0.04601931,145.15,145.12,0.0459517]
[1724434390220,0.04601931,145.15,145.13,5.51]
[1724434391321,3.4446,145.14,145.13,5.51]
[1724434391718,0.04601931,145.15,145.13,5.51]
[1724434393325,3.49041931,145.15,145.13,5.51]
[1724434393517,0.04601931,145.15,145.13,5.51]
[1724434393713,3.40027035,145.2,145.13,8.9547]
[1724434394013,29.22,145.21,145.13,8.9547]
[1724434394014,29.22,145.21,145.13,34.73]
[1724434394219,29.22,145.19,145.13,8.9547]
[1724434394414,3.444,145.17,145.13,8.9547]
[1724434394717,0.05215673,145.16,145.14,0.04407595]
[1724434395517,0.05215673,145.16,145.14,3.48867595]
[1724434395714,29.22,145.21,145.14,0.04407595]
[1724434395913,29.22,145.23,145.14,29.26407595]
[1724434396115,29.22,145.23,145.15,3.4443]
[1724434396315,32.66307462,145.23,145.14,29.22]
[1724434396519,29.22,145.24,145.16,29.22]
[1724434396721,29.22,145.23,145.17,1.7736]
[1724434396929,0.0476806,145.21,145.19,0.04889904]
[1724434398918,3.4432,145.2,145.19,0.04889904]
[1724434403831,3.4432,145.2,145.19,9.36889904]
[1724434404923,29.2676806,145.21,145.15,1.8057]
[1724434405220,29.2676806,145.21,145.14,5.51]
[1724434405221,29.22,145.18,145.14,5.51]
[1724434405425,29.22,145.18,145.14,11.67]
[1724434405729,3.4439,145.17,145.14,11.67]
[1724434406116,0.04646505,145.17,145.14,11.72016932]
[1724434406427,3.4442,145.16,145.14,11.72016932]
[1724434406731,0.04646505,145.17,145.14,11.72016932]
[1724434406920,3.49046505,145.17,145.14,11.72016932]
[1724434408424,3.4441,145.16,145.14,11.72016932]
[1724434410928,0.04646505,145.17,145.14,11.72016932]
[1724434410929,3.4443,145.15,145.14,11.72016932]
[1724434411323,29.22,145.16,145.14,11.72016932]
[1724434411528,32.6643,145.16,145.14,11.72016932]
[1724434411932,29.22,145.16,145.14,11.72016932]
[1724434412135,3.4443,145.15,145.14,11.72016932]
[1724434414036,3.4446,145.14,145.11,7.36]
[1724434414240,32.6646,145.14,145.11,7.36]
[1724434414534,3.4446,145.14,145.13,11.02]
[1724434415630,32.6646,145.14,145.13,11.02]
[1724434420640,3.4446,145.14,145.13,11.02]
[1724434423940,32.6646,145.14,145.13,11.02]
[1724434425236,3.4444,145.15,145.13,11.02]
[1724434426738,0.04646505,145.17,145.13,11.02]
[1724434427338,3.49046505,145.17,145.13,12.9031]
[1724434427847,0.04646505,145.17,145.13,12.9031]
[1724434429151,0.04646505,145.17,145.13,16.3479]
[1724434430253,0.04646505,145.17,145.13,24.1279]
[1724434431153,0.04646505,145.17,145.13,20.6831]
[1724434432351,0.04646505,145.17,145.13,24.1279]
[1724434433943,3.49056505,145.17,145.13,20.6831]
[1724434438252,3.49056505,145.17,145.14,3.52772743]
[1724434438456,3.49056505,145.17,145.13,15.1731]
[1724434438649,3.4441,145.16,145.13,15.1731]
[1724434439147,3.4441,145.16,145.14,3.52763915]
[1724434439351,3.49036505,145.17,145.13,18.6179]
[1724434439542,3.49036505,145.17,145.14,3.52707686]
[1724434439747,3.49036505,145.17,145.15,3.52707686]
[1724434439942,3.49036505,145.17,145.13,18.6179]
[1724434440150,3.49036505,145.17,145.14,3.52679014]
[1724434440151,3.4441,145.16,145.14,3.52679014]
[1724434440352,3.4441,145.16,145.15,3.52679014]
[1724434440547,0.04646505,145.17,145.15,3.52679014]
[1724434440746,3.49046505,145.17,145.13,18.6178]
[1724434440949,3.49046505,145.17,145.14,3.52555312]
[1724434441149,3.49046505,145.17,145.15,3.52555312]
[1724434441351,3.49046505,145.17,145.13,18.6178]
[1724434441552,3.49046505,145.17,145.14,3.5255365]
[1724434441755,3.49046505,145.17,145.13,18.6178]
[1724434441950,0.04646505,145.17,145.15,3.5255365]
[1724434442152,3.4437,145.18,145.16,3.5255365]
[1724434442349,3.4437,145.18,145.15,1.8872]
[1724434442554,29.22,145.21,145.16,3.52543958]
[1724434442745,29.22,145.21,145.15,1.8872]
[1724434442945,29.22,145.21,145.16,3.52606688]
[1724434443150,0.0488594,145.2,145.17,0.04995537]
[1724434443353,3.4434,145.19,145.17,0.04995537]
[1724434443556,0.0488594,145.2,145.17,0.04995537]
[1724434443959,3.4436,145.19,145.17,0.04995537]
[1724434444155,0.0488594,145.2,145.17,0.04995537]
[1724434444453,0.0488594,145.2,145.17,5.55995537]
[1724434445055,29.22,145.19,145.17,5.55995537]
[1724434446154,29.22,145.18,145.17,5.55995537]
[1724434446357,29.22,145.18,145.13,9.6631]
[1724434446657,3.444,145.17,145.14,3.52607104]
[1724434446960,29.22,145.19,145.15,3.52607104]
[1724434447251,3.4927294,145.18,145.16,3.57740127]
[1724434447458,3.4927294,145.18,145.16,0.05133023]
[1724434448152,3.4439,145.17,145.16,0.05133023]
[1724434448358,3.4439,145.17,145.16,3.57729221]
[1724434451052,3.4439,145.17,145.16,0.05133023]
[1724434451252,3.4439,145.17,145.16,3.57681491]
[1724434451459,3.4439,145.17,145.16,0.05133023]
[1724434451657,3.4439,145.17,145.16,3.57681491]
[1724434452456,29.2689294,145.18,145.16,3.57681491]
[1724434452457,3.4927294,145.18,145.16,3.57681491]
[1724434452658,3.4927294,145.18,145.17,3.52548468]
[1724434453654,3.4927294,145.18,145.16,0.05133023]
[1724434453655,3.4439,145.17,145.16,0.05133023]
[1724434454158,3.4439,145.17,145.16,3.57692229]
[1724434454356,3.4926294,145.18,145.16,3.57692229]
[1724434454857,32.7126294,145.18,145.17,3.52559206]
[1724434455159,3.4439,145.17,145.16,0.05133023]
[1724434456061,61.89632107,145.18,145.11,1.8396]
[1724434456358,29.22,145.14,145.11,1.8396]
[1724434456960,29.22,145.13,145.11,0.04872612]
[1724434457453,29.27167617,145.14,145.11,0.04872612]
[1724434458758,3.4451,145.12,145.11,0.04872612]
[1724434464760,3.4451,145.12,144.9,350.88]
[1724434464761,29.22,145.09,144.89,1.8951]
[1724434464966,29.22,145.05,144.98,1.8951]
[1724434465462,3.447,145.04,144.99,3.448]
[1724434465661,0.04603225,145.03,145.0,0.05029723]
[1724434467274,0.04603225,145.03,145.0,3.49799723]
[1724434468584,6.8884,145.16,145.0,3.49799723]
[1724434468585,29.22,145.1,145.01,29.22]
[1724434468974,3.4459,145.09,145.04,3.4469]
[1724434469185,3.4459,145.09,145.03,29.22]
[1724434469480,60.21294594,145.12,145.04,3.5655]
[1724434469776,0.05281315,145.07,145.05,3.49059633]
[1724434469978,0.04633866,145.07,145.05,3.49059633]
[1724434470574,27.54,145.12,145.06,3.4465]
[1724434470882,29.22,145.14,145.07,29.22]
[1724434471275,3.4451,145.12,145.07,32.6662]
[1724434471677,0.04352559,145.11,145.08,0.04897479]
[1724434471978,0.04352559,145.11,145.08,3.49487479]
[1724434473186,0.04352559,145.11,145.09,3.4457]
[1724434473379,16.2691746,145.29,145.09,3.4457]
[1724434473380,29.22,145.18,145.09,31.0217]
[1724434473685,3.4447,145.14,145.1,5.3264]
[1724434474080,29.22,145.18,145.1,1.8809]
[1724434474482,0.04980343,145.15,145.13,0.04758516]
[1724434475685,0.04980343,145.15,145.13,15.40758516]
[1724434476884,3.49430343,145.15,145.13,15.40758516]
[1724434477081,0.04980343,145.15,145.13,15.40758516]
[1724434480586,31.00439091,145.24,145.13,15.40758516]
[1724434480587,26.37970343,145.16,145.13,15.40758516]
[1724434480779,31.00439091,145.24,145.14,30.9609]
[1724434481085,3.4436,145.19,145.14,30.9609]
[1724434481386,3.4436,145.19,145.15,1.8397]
[1724434481782,0.0467278,145.18,145.16,0.04873287]
[1724434483085,3.4436,145.19,145.16,0.04873287]
[1724434483290,3.4432,145.2,145.16,0.04873287]
[1724434484188,31.00439091,145.24,145.16,0.04873287]
[1724434484189,3.4902098,145.19,145.16,0.04873287]
[1724434484987,0.0468098,145.19,145.16,3.49283287]
[1724434485490,3.51124746,145.28,145.18,29.22]
[1724434485793,29.22,145.29,145.18,29.22]
[1724434485991,3.4422,145.25,145.2,3.443]
[1724434486187,3.4422,145.25,145.21,1.8521]
[1724434486494,3.4419,145.26,145.21,34.5149]
[1724434486690,3.4419,145.26,145.21,31.0721]
[1724434486993,0.04427156,145.24,145.22,0.05071788]
[1724434487193,0.04427156,145.24,145.22,3.49341788]
[1724434487590,29.22,145.35,145.23,29.22]
[1724434487793,29.22,145.38,145.29,29.22]
[1724434487991,29.22,145.36,145.27,29.22]
[1724434488491,3.4850209,145.33,145.3,0.04998113]
[1724434489788,3.4404,145.32,145.3,0.04998113]
[1724434489992,0.0448209,145.33,145.3,0.04998113]
[1724434490592,0.0448209,145.33,145.3,3.49068113]
[1724434491084,3.4849209,145.33,145.3,0.04998113]
[1724434491284,0.0448209,145.33,145.3,0.04998113]
[1724434491890,3.4851209,145.33,145.3,0.04998113]
[1724434492093,0.0448209,145.33,145.3,0.04998113]
[1724434493691,3.4405,145.32,145.3,0.04998113]
[1724434495699,3.4406,145.31,145.3,0.04998113]
[1724434496600,0.0448209,145.33,145.3,0.04998113]
[1724434497096,3.4851209,145.33,145.3,0.04998113]
[1724434497894,3.4404,145.32,145.3,0.04998113]
[1724434498095,0.0448209,145.33,145.3,0.04998113]
[1724434499193,3.4405,145.32,145.3,0.04998113]
[1724434499393,0.0448209,145.33,145.3,0.04998113]
[1724434500096,3.4850209,145.33,145.3,0.04998113]
[1724434500592,0.0448209,145.33,145.32,29.22]
[1724434501290,0.0448209,145.33,145.32,32.6603]
[1724434501491,3.4395,145.36,145.32,32.6603]
[1724434501893,3.4396,145.35,145.32,29.22]
[1724434502393,0.04660186,145.35,145.32,32.70809498]
[1724434504397,0.04660186,145.35,145.33,3.4399]
[1724434504603,0.04660186,145.35,145.32,29.26779498]
[1724434504802,0.04660186,145.35,145.34,29.22]
[1724434507192,0.04660186,145.35,145.33,1.9087]
[1724434508204,0.04660186,145.35,145.32,32.70809498]
[1724434508205,0.04660186,145.35,145.32,0.04779498]
[1724434508806,3.4401,145.34,145.32,0.04779498]
[1724434509300,0.04660186,145.35,145.32,9.37779498]
[1724434509509,3.4399,145.34,145.32,9.37779498]
[1724434509805,0.04660186,145.35,145.32,9.37779498]
[1724434510203,3.4399,145.34,145.32,9.37779498]
[1724434511907,3.48630186,145.35,145.32,9.37779498]
[1724434512703,3.4399,145.34,145.32,9.37779498]
[1724434514806,0.04660186,145.35,145.32,9.37779498]
[1724434515810,3.4399,145.34,145.32,9.37779498]
[1724434516207,0.04660186,145.35,145.32,9.37779498]
[1724434516711,3.4399,145.34,145.32,9.37779498]
[1724434518018,3.4401,145.33,145.32,9.37779498]
[1724434519012,3.4401,145.33,145.32,12.05779498]
[1724434521321,3.4401,145.33,145.26,68.96364277]
[1724434521322,3.4412,145.29,145.26,68.96364277]
[1724434522919,3.49248061,145.29,145.26,69.0121139]
[1724434523414,0.05128061,145.29,145.26,69.0121139]
[1724434524619,0.05128061,145.29,145.26,101.6738139]
[1724434524823,0.05128061,145.29,145.26,107.1738139]
[1724434525715,0.05128061,145.29,145.26,103.7321139]
[1724434525923,3.49238061,145.29,145.26,103.7321139]
[1724434526811,3.49238061,145.29,145.26,112.6121139]
[1724434528323,3.4413,145.28,145.26,112.6121139]
[1724434533228,0.05128061,145.29,145.26,116.0538139]
[1724434533524,0.05128061,145.29,145.28,29.22]
[1724434533730,3.4408,145.31,145.28,32.6613]
[1724434533925,30.4345,145.38,145.28,29.22]
[1724434534126,3.4402,145.33,145.3,32.6607]
[1724434534330,31.1088,145.4,145.3,29.22]
[1724434534523,6.8754,145.44,145.32,29.22]
[1724434534524,30.4345,145.42,145.32,29.22]
[1724434534827,3.4395,145.36,145.34,29.22]
[1724434535134,3.4395,145.36,145.34,29.26608403]
[1724434539231,0.05129856,145.38,145.35,29.22]
[1724434539739,3.4133641,145.44,145.37,29.22]
[1724434539740,3.4386,145.4,145.37,29.22]
[1724434540731,3.49039944,145.4,145.37,29.26810318]
[1724434541133,8.8037,145.49,145.37,29.26810318]
[1724434541337,8.8037,145.49,145.38,1.9136]
[1724434541537,29.22,145.47,145.38,1.9136]
[1724434541738,3.4381,145.42,145.39,29.22]
[1724434542039,34.64851498,145.49,145.39,29.22]
[1724434542239,3.4375,145.44,145.43,0.05089245]
[1724434543843,0.03478566,145.45,145.43,5.55089245]
[1724434545736,0.03478566,145.45,145.43,34.77089245]
[1724434548548,0.03478566,145.45,145.43,38.20859245]
[1724434548939,0.03478566,145.45,145.43,34.77089245]
[1724434550550,3.47208566,145.45,145.43,34.77089245]
[1724434554757,3.4375,145.44,145.43,29.27089245]
[1724434554943,3.4375,145.44,145.43,0.05089245]
[1724434556650,0.03478566,145.45,145.43,0.05089245]
[1724434556851,3.47208566,145.45,145.43,0.05089245]
[1724434557952,3.4375,145.44,145.43,0.05089245]
[1724434559454,3.4375,145.44,145.43,8.29089245]
[1724434560347,3.47218566,145.45,145.43,8.29089245]
[1724434560658,0.03478566,145.45,145.43,8.29089245]
[1724434561158,3.4375,145.44,145.43,8.29089245]
[1724434561653,3.4375,145.44,145.43,13.79089245]
[1724434563150,3.47208566,145.45,145.43,13.79089245]
[1724434563351,0.03478566,145.45,145.43,43.01089245]
[1724434565960,3.47208566,145.45,145.43,43.01089245]
[1724434566358,0.03478566,145.45,145.43,43.01089245]
[1724434567868,3.47208566,145.45,145.43,13.79089245]
[1724434568069,0.03478566,145.45,145.43,13.79089245]
[1724434568761,3.47208566,145.45,145.43,13.79089245]
[1724434569458,0.03478566,145.45,145.43,13.79089245]
[1724434570265,3.47208566,145.45,145.43,13.79089245]
[1724434571263,0.03478566,145.45,145.43,13.79089245]
[1724434572067,3.47208566,145.45,145.43,13.79089245]
[1724434572867,3.4375,145.44,145.43,13.79089245]
[1724434577970,3.4375,145.44,145.43,8.02579245]
[1724434578166,3.4375,145.44,145.43,5.5]
[1724434594475,0.03478566,145.45,145.33,3.73]
[1724434594678,29.22,145.39,145.33,1.8539]
[1724434594975,29.22,145.39,145.34,7.3]
[1724434594976,32.72366668,145.39,145.34,7.3]
[1724434595377,32.72366668,145.39,145.35,0.05241716]
[1724434595378,0.04983258,145.38,145.35,0.05241716]
[1724434596075,3.4394,145.36,145.35,0.05241716]
[1724434598379,0.04983258,145.38,145.35,0.05241716]
[1724434598878,3.48873258,145.38,145.35,0.05241716]
[1724434599675,3.4393,145.37,145.35,0.05241716]
[1724434600981,3.48873258,145.38,145.35,0.05241716]
[1724434601180,0.04983258,145.38,145.35,0.05241716]
[1724434601482,3.4394,145.36,145.35,0.05241716]
[1724434602569,3.4392,145.37,145.35,0.05241716]
[1724434603074,0.04983258,145.38,145.35,0.05241716]
[1724434603275,3.4394,145.36,145.35,0.05241716]
[1724434607179,3.4394,145.36,145.35,7.94241716]
[1724434611786,0.04983258,145.38,145.35,7.94241716]
[1724434612887,3.4394,145.36,145.35,7.94241716]
[1724434613092,0.04983258,145.38,145.35,7.94241716]
[1724434613693,30.87161192,145.51,145.36,29.22]
[1724434613884,29.22,145.47,145.38,29.22]
[1724434614081,3.4381,145.42,145.38,29.22]
[1724434614290,6.79140237,145.42,145.38,29.22]
[1724434614487,3.4381,145.42,145.36,33.1204]
[1724434614682,0.05172649,145.4,145.38,0.05105254]
[1724434615288,3.4387,145.39,145.38,0.05105254]
[1724434615588,0.05172649,145.4,145.38,0.05105254]
[1724434615790,3.4387,145.39,145.38,0.05105254]
[1724434618189,0.05172649,145.4,145.38,0.05105254]
[1724434619394,3.49022649,145.4,145.38,0.05105254]
[1724434619994,3.4387,145.39,145.38,0.05105254]
[1724434625700,3.4399,145.34,145.33,3.7878]
[1724434626995,3.49089867,145.35,145.33,3.7878]
[1724434627894,3.49089867,145.35,145.34,5.5]
[1724434629413,32.71089867,145.35,145.34,5.5]
[1724434630613,3.49089867,145.35,145.34,5.5]
[1724434631216,0.05129867,145.35,145.34,5.5]
[1724434632316,3.49089867,145.35,145.34,5.5]
[1724434634121,32.71089867,145.35,145.34,5.5]
[1724434639222,3.49089867,145.35,145.34,5.5]
[1724434643629,3.49089867,145.35,145.34,11.0]
[1724434647126,32.71089867,145.35,145.34,11.0]
[1724434648420,3.4401,145.33,145.32,0.0465615]
[1724434649229,6.88353486,145.33,145.32,0.0465615]
[1724434653028,3.441,145.29,145.28,3.8569]
[1724434657941,3.4413,145.28,145.27,0.04635757]
[1724434663843,3.4413,145.28,145.27,7.75635757]
[1724434665335,3.4413,145.28,145.27,13.25635757]
[1724434666945,0.04719793,145.3,145.27,13.25635757]
[1724434666946,3.4412,145.29,145.27,13.25635757]
[1724434667141,0.04719793,145.3,145.27,13.25635757]
[1724434667542,0.04719793,145.3,145.28,10.54]
[1724434667742,3.44343486,145.33,145.28,10.54]
[1724434667942,56.74,145.36,145.29,3.9243]
[1724434668348,27.52,145.36,145.29,33.1443]
[1724434668643,0.04631978,145.34,145.29,33.1443]
[1724434668842,0.04631978,145.34,145.31,0.04434354]
[1724434672348,3.48621978,145.34,145.31,0.04434354]
[1724434672540,29.22,145.39,145.31,0.04434354]
[1724434672738,29.22,145.39,145.31,29.26434354]
[1724434673149,3.4396,145.36,145.31,29.26434354]
[1724434673641,0.04630747,145.35,145.31,29.26434354]
[1724434673840,3.48590747,145.35,145.31,29.26434354]
[1724434675945,3.48590747,145.35,145.31,0.04434354]
[1724434676249,0.04630747,145.35,145.31,0.04434354]
[1724434676939,3.4399,145.34,145.31,0.04434354]
[1724434677953,3.4402,145.33,145.31,0.04434354]
[1724434681356,3.4402,145.33,145.31,5.54434354]
[1724434681556,3.4403,145.32,145.31,5.54434354]
[1724434687151,3.4402,145.33,145.31,5.54434354]
[1724434691454,3.4403,145.32,145.31,5.54434354]
[1724434694260,0.04630747,145.35,145.31,5.54434354]
[1724434694951,3.4399,145.34,145.31,5.54434354]
[1724434696259,3.4399,145.34,145.31,14.48484354]
[1724434696659,1.0,145.44,145.32,29.22]
[1724434696956,1.9325,145.45,145.35,29.22]
[1724434696957,32.64266746,145.43,145.35,29.22]
[1724434697164,3.4389,145.38,145.36,1.838]
[1724434697857,3.48113635,145.38,145.36,1.88701625]
[1724434698057,0.04223635,145.38,145.36,1.88701625]
[1724434698463,0.04223635,145.38,145.37,5.5]
[1724434698858,3.4387,145.39,145.37,5.5]
[1724434699551,3.4385,145.4,145.37,5.5]
[1724434700155,3.4381,145.42,145.37,5.5]
[1724434700352,3.37161192,145.51,145.37,34.72]
[1724434700557,29.22,145.46,145.43,0.0495358]
[1724434700765,3.4375,145.44,145.43,0.04358216]
[1724434701171,7.28181425,145.53,145.43,0.04358216]
[1724434701466,7.28181425,145.53,145.47,0.05206373]
[1724434701662,29.22,145.48,145.39,29.22]
[1724434701857,7.28181425,145.53,145.39,29.22]
[1724434701858,29.22,145.47,145.42,0.04431447]
[1724434702055,7.28181425,145.53,145.39,29.22]
[1724434702258,7.28181425,145.53,145.43,0.04654758]
[1724434702259,29.22,145.44,145.43,0.04654758]
[1724434702461,29.22,145.44,145.38,1.9303]
[1724434702462,3.4381,145.42,145.38,1.9303]
[1724434702759,29.22,145.44,145.39,0.04538854]
[1724434703153,3.4384,145.4,145.39,0.04538854]
[1724434703459,32.6584,145.4,145.39,0.04538854]
[1724434703759,3.4384,145.4,145.39,0.04538854]
[1724434704160,32.6584,145.4,145.39,0.04538854]
[1724434704657,3.4384,145.4,145.39,0.04538854]
[1724434705559,32.6584,145.4,145.39,0.04538854]
[1724434707868,3.4384,145.4,145.39,0.04538854]
[1724434710167,3.4384,145.41,145.39,0.04538854]
[1724434710362,29.22,145.43,145.39,0.04538854]
[1724434711266,3.4385,145.4,145.39,0.04538854]
[1724434718975,3.4383,145.41,145.39,0.04538854]
[1724434719473,3.4381,145.42,145.39,0.04538854]
[1724434719863,3.8012,145.46,145.39,0.04538854]
[1724434720674,3.4384,145.41,145.39,0.04538854]
[1724434720875,3.36361383,145.43,145.39,0.04538854]
[1724434721065,29.22,145.45,145.39,0.04538854]
[1724434721670,3.39191608,145.44,145.39,29.26538854]
[1724434721884,29.22,145.49,145.4,0.04363022]
[1724434722179,29.22,145.49,145.43,0.04569705]
[1724434722575,3.4375,145.44,145.43,0.04569705]
[1724434722876,6.88134018,145.44,145.43,5.54569705]
[1724434723074,3.4375,145.44,145.43,5.54569705]
[1724434725081,3.4375,145.44,145.43,11.04569705]
[1724434726468,3.50391425,145.53,145.43,40.26569705]
[1724434726672,2.7169,145.55,145.47,29.26837111]
[1724434726874,6.18089312,145.55,145.47,29.26837111]
[1724434727168,1.301,145.55,145.51,29.22]
[1724434727369,27.5,145.56,145.52,0.0526957]
[1724434727370,3.42033223,145.54,145.52,0.0526957]
[1724434727571,27.5,145.56,145.52,0.0526957]
[1724434727973,30.87907784,145.56,145.52,0.0526957]
[1724434728374,3.4354,145.53,145.52,0.0526957]
[1724434729483,3.4354,145.53,145.52,29.2726957]
[1724434730082,3.4352,145.54,145.52,29.2726957]
[1724434731079,3.4354,145.53,145.52,29.2726957]
[1724434731374,2.7207,145.6,145.52,29.2726957]
[1724434731575,6.22330462,145.6,145.54,29.22]
[1724434731775,3.4349,145.56,145.54,29.22]
[1724434731972,3.4349,145.56,145.54,29.26824652]
[1724434732176,2.7752,145.64,145.54,29.26824652]
[1724434732177,3.39266509,145.58,145.54,0.04824652]
[1724434732379,3.4349,145.55,145.54,0.04824652]
[1724434732571,3.51943911,145.56,145.52,29.22]
[1724434732778,29.22,145.61,145.53,0.04558846]
[1724434733283,3.4353,145.54,145.53,0.04558846]
[1724434736080,3.4353,145.54,145.53,9.09558846]
[1724434736478,3.51222433,145.61,145.53,9.09558846]
[1724434736679,29.22,145.63,145.55,29.22]
[1724434736879,29.22,145.63,145.58,0.05241035]
[1724434737684,3.434,145.59,145.58,0.05241035]
[1724434738183,3.434,145.59,145.58,5.54241035]
[1724434739182,3.4338,145.6,145.58,5.54241035]
[1724434740286,3.434,145.59,145.58,5.54241035]
[1724434744487,3.46798237,145.63,145.58,34.76241035]
[1724434744687,27.48,145.65,145.58,44.95241035]
[1724434744891,3.4336,145.61,145.58,44.95241035]
[1724434745586,3.4337,145.6,145.58,44.95241035]
[1724434745988,30.86039839,145.65,145.58,44.95241035]
[1724434746390,3.38039839,145.65,145.58,44.95241035]
[1724434746592,3.4337,145.61,145.58,44.95241035]
[1724434746784,32.64539251,145.67,145.58,44.95241035]
[1724434747186,32.64539251,145.67,145.58,44.9]